[Event "1st Serbian League 2022"]
[Site "Vrnjacka Banja"]
[Date "2022.09.27"]
[Round "8.18"]
[White "Markovic, Miroslav"]
[Black "Perunovic, Miodrag"]
[Result "1/2-1/2"]
[ECO "A46"]
[WhiteElo "2275"]
[BlackElo "2413"]
[Annotator "TA"]
[PlyCount "21"]
[EventDate "2022.09.20"]
[EventType "team-tourn"]
[EventCountry "SRB"]
[SourceTitle "playchess.com"]
[Source "ChessBase"]
[SourceQuality "1"]
[TimeControl "40/5400+30:1800+30"]

{[%evp 9,21,20,30,17,33,29,34,27,20,18,26,13,13,-32]} 1. d4 {[%emt 0:00:17]} Nf6 {[%emt 0:00:46]} 2. Nf3 {[%emt 0:00:29]} e6 {[%emt 0:01:07]} 3. Bf4 {[%emt 0:00:58]} c5 {[%emt 0:00:53]} 4. e3 {[%emt 0:00:39]} cxd4 {[%emt 0:00:53]} 5. exd4 {[%emt 0:00:06]} b6 {[%emt 0:00:24]} 6. Bd3 {[%emt 0:00:39] A46: 1 d4 Nf6 2 Nf3 e6: Torre, London and Colle Systems.} Bb7 {[%emt 0:00:07]} 7. O-O {[%emt 0:00:46] 7.0-0 scores better than 7.Nbd2.} Be7 {[%emt 0:00:19]} 8. c3 {[%emt 0:00:38]} O-O {[%emt 0:00:09]} 9. Nbd2 {[%emt 0:00:38]} d6 {[%emt 0:00:39]} 10. Qe2 {[%emt 0:00:27]} Nbd7 {[%emt 0:00:11] [#]} 11. Nb1 $146 {[%emt 1:30:23] White did not feel at home in the position after the opening.  Weighted Error Value: White=0.07 (flawless) /Black=0.05 (flawless)} ({Predecessor:} 11. a4 a6 12. Rfe1 Re8 13. h3 Bf8 14. Bh2 Qc7 15. Nc4 h6 16. Ne3 Qc6 17. Nd2 {0-1 (64) Molina,R (2434)-Martinez Alcantara,J (2620) Chess.com INT 2021}) 1/2-1/2

[Event "1st Serbian League 2022"]
[Site "Vrnjacka Banja"]
[Date "2022.09.27"]
[Round "8.19"]
[White "Indjic, Aleksandar"]
[Black "Ioannidis, Evgenios"]
[Result "1/2-1/2"]
[ECO "A22"]
[WhiteElo "2628"]
[BlackElo "2486"]
[Annotator "TA"]
[PlyCount "184"]
[EventDate "2022.09.20"]
[EventType "team-tourn"]
[EventCountry "SRB"]
[SourceTitle "playchess.com"]
[Source "ChessBase"]
[SourceQuality "1"]
[TimeControl "40/5400+30:1800+30"]

{[%evp 11,184,0,0,0,9,10,13,0,23,14,19,17,1,0,12,0,4,0,0,0,0,0,0,0,37,37,39,33,44,36,51,30,30,25,44,41,49,38,52,57,66,66,74,49,59,42,57,55,57,55,53,54,66,66,66,66,66,66,68,59,66,66,66,66,66,66,66,66,66,66,66,66,66,66,66,66,67,0,57,57,88,88,88,88,88,36,36,36,36,36,36,36,46,36,36,34,39,36,42,42,42,43,60,42,42,42,60,47,57,34,34,34,34,34,34,34,34,19,69,69,72,18,69,34,37,37,39,37,69,69,89,89,89,69,69,69,69,34,46,19,80,69,69,69,69,37,69,69,69,69,69,69,69,69,69,0,0,0,8,0,0,0,0,0,0,0,0,0,0,0,0,0,0,0,0]} 1. c4 {[%emt 0:00:36]} Nf6 {[%emt 0:00:34]} 2. Nc3 {[%emt 0:00:32]} e5 {[%emt 0:00:47]} 3. e3 {[%emt 0:01:00]} Bb4 {[%emt 0:02:10]} 4. Nge2 {[%emt 0:01:09]} O-O {[%emt 0:00:39]} 5. a3 {[%emt 0:00:55]} Be7 {[%emt 0:00:47]} 6. d4 {[%emt 0:00:07]} exd4 {[%emt 0:00:35]} 7. Qxd4 {[%emt 0:00:07] A22: English Opening: 1...e5 2 Nc3 Nf6.} Nc6 {[%emt 0:04:55]} 8. Qd1 {[%emt 0:00:20]} Ne5 {[%emt 0:07:24]} 9. Nf4 {[%emt 0:00:33] [#]} b6 $146 {[%emt 0:08:23]} ({Predecessor:} 9... c6 10. Be2 Ng6 11. Nh5 Nxh5 12. Bxh5 d6 13. O-O Be6 14. b3 Bf6 15. Bb2 d5 16. cxd5 Bxd5 {½-½ (55) Carlsen,M (2837)-Grigoriants,S (2561) Riadh 2017}) 10. Be2 {[%emt 0:00:40]} Bb7 {[%emt 0:00:26]} 11. Nfd5 {[%emt 0:00:09]} c6 {[%emt 0:05:44]} 12. Nxe7+ {[%emt 0:00:07]} Qxe7 {[%emt 0:00:04]} 13. O-O {[%emt 0:00:07]} Rfd8 {[%emt 0:02:42]} 14. Qc2 {[%emt 0:03:02]} d5 {[%emt 0:02:23]} 15. cxd5 {[%emt 0:00:06]} cxd5 {[%emt 0:00:26]} 16. Nb5 {[%emt 0:00:21]} Rac8 {[%emt 0:03:07]} 17. Qd1 {[%emt 0:00:26]} a6 {[%emt 0:06:42]} 18. Nd4 {[%emt 0:00:18]} Ne4 {[%emt 0:00:04]} 19. f3 {[%emt 0:00:23]} Nd6 {[%emt 0:00:39]} 20. b3 {[%emt 0:00:08]} Nc6 {[%emt 0:07:26]} 21. Nxc6 {[%emt 0:01:09]} (21. Bd3 {keeps more tension.} Qe5 22. Kh1 Nb5 23. f4) 21... Rxc6 {[%emt 0:00:08]} 22. Bd3 {[%emt 0:00:05] Against Nf5} Nb5 {[%emt 0:01:27]} 23. Bxb5 {[%emt 0:00:29]} axb5 {[%emt 0:00:06]} 24. Qd4 {[%emt 0:00:08]} Qc5 {[%emt 0:02:34]} 25. Bb2 {[%emt 0:00:11][%csl Gb2][%cal Rd4g7] [#]} Qxd4 {[%emt 0:00:07]} 26. Bxd4 {[%emt 0:00:04]} Rdc8 {[%emt 0:00:05]} 27. h3 {[%emt 0:00:53]} f6 {[%emt 0:00:08]} 28. a4 {[%emt 0:00:27]} Ba6 {[%emt 0:03:47]} 29. a5 {[%emt 0:03:00]} bxa5 {[%emt 0:00:12]} 30. Rxa5 {[%emt 0:00:08]} b4 {[%emt 0:00:05]} 31. Rf2 {[%emt 0:05:53]} Bd3 {[%emt 0:01:34]} 32. Rxd5 {[%emt 0:00:15]} Bc2 {[%emt 0:00:08]} 33. Rb5 {[%emt 0:00:08]} Bxb3 {[%emt 0:00:03]} 34. Rxb4 {[%emt 0:00:08]} Be6 {[%emt 0:00:45]} 35. Rfb2 {[%emt 0:00:14]} Rc1+ {[%emt 0:00:22]} 36. Kh2 {[%emt 0:00:06]} R1c2 {[%emt 0:00:08]} 37. h4 {[%emt 0:00:30]} Rxb2 {[%emt 0:00:23]} 38. Rxb2 $14 {[%emt 0:00:01][%mdl 4096] Endgame KRB-KRB} h5 {[%emt 0:00:33]} 39. Kg3 {[%emt 0:00:22]} Rc7 {[%emt 0:01:26]} 40. e4 {[%emt 0:00:19]} Rc4 {[%emt 0:00:39]} 41. Rb8+ {[%emt 0:30:40]} Kf7 {[%emt 0:33:04]} 42. Rb7+ {[%emt 0:00:31]} Kg6 {[%emt 0:00:13]} 43. Bb2 {[%emt 0:00:06]} Rc2 {[%emt 0:00:50]} 44. Bd4 {[%emt 0:02:40]} (44. Ba3 $14) 44... Bc4 {[%emt 0:00:21]} (44... Rc4 $11 45. Rb6 Bc8) 45. e5 {[%emt 0:00:33]} fxe5 {[%emt 0:02:10]} 46. Bxe5 {[%emt 0:00:38]} Kf5 {[%emt 0:00:10]} 47. Bxg7 {[%emt 0:08:09]} Bf1 {[%emt 0:00:05]} 48. Rf7+ {[%emt 0:01:47]} ({White should try} 48. Rb2 $16 Rxb2 49. Bxb2) 48... Kg6 {[%emt 0:00:18]} 49. Rd7 {[%emt 0:00:12]} Rxg2+ {[%emt 0:00:08]} 50. Kf4 {[%emt 0:00:08]} Rh2 {[%emt 0:00:04]} 51. Bf8 {[%emt 0:00:41]} Bb5 {[%emt 0:09:51]} 52. Rc7 {[%emt 0:01:50]} Be8 {[%emt 0:03:27]} 53. Rb7 {[%emt 0:01:15]} Rc2 {[%emt 0:00:58]} 54. Rg7+ {[%emt 0:02:37]} Kf6 {[%emt 0:00:06]} 55. Rg5 {[%emt 0:00:09]} Rc4+ {[%emt 0:00:36]} 56. Kg3 {[%emt 0:00:10]} Bg6 {[%emt 0:00:19]} 57. Be7+ {[%emt 0:00:17]} Kf7 {[%emt 0:00:08]} 58. Re5 {[%emt 0:00:15]} Kg7 {[%emt 0:02:27]} 59. Bg5 {[%emt 0:00:10]} Ra4 {[%emt 0:00:24]} 60. f4 {[%emt 0:00:22]} Ra3+ {[%emt 0:00:12]} 61. Kf2 {[%emt 0:00:32]} Ra2+ {[%emt 0:02:44]} 62. Ke3 {[%emt 0:00:13]} Ra3+ {[%emt 0:00:02]} 63. Kd4 {[%emt 0:00:07]} Ra4+ {[%emt 0:00:05]} 64. Kc3 {[%emt 0:00:10]} Bf7 {[%emt 0:00:58]} ({Black should play} 64... Ra3+ $1 $11 65. Kd2 Ra2+ 66. Kc3 Ra3+ 67. Kd4 Ra4+ 68. Kc3 Ra3+) 65. Rc5 {[%emt 0:00:32]} Bg6 {[%emt 0:01:26]} 66. Rc6 {[%emt 0:01:05]} (66. f5 $16 Bf7 67. Kd3) 66... Be8 {[%emt 0:00:42]} (66... Be4 $11 67. Rc5 Kg6) 67. Rd6 {[%emt 0:00:16]} (67. Re6 $5 {[%cal Re6e8]} Ra3+ 68. Kd4 Ra4+ 69. Kc3 Ra3+ 70. Kd4 Ra4+ 71. Kc3 $16) 67... Ra7 {[%emt 0:02:05]} 68. Bf6+ {[%emt 0:00:10]} Kf7 {[%emt 0:00:19]} 69. Bd4 {[%emt 0:00:33]} Rc7+ {[%emt 0:01:34]} 70. Kd3 {[%emt 0:00:26] White is more active.} Bb5+ {[%emt 0:06:40]} 71. Ke4 {[%emt 0:00:22]} Re7+ {[%emt 0:00:02]} 72. Be5 {[%emt 0:01:47]} Re6 {[%emt 0:00:03]} 73. Rd8 {[%emt 0:01:15]} Re8 {[%emt 0:01:32]} 74. Rd2 {[%emt 0:00:23]} Rg8 {[%emt 0:00:44]} 75. Rc2 {[%emt 0:02:41]} Rd8 {[%emt 0:00:25]} (75... Rg4 $1 $11 {keeps the balance.}) 76. Rc3 {[%emt 0:00:36]} Bd7 {[%emt 0:05:53]} 77. f5 {[%emt 0:01:50]} Rc8 {[%emt 0:00:30]} 78. Rb3 {[%emt 0:11:48]} Bc6+ {[%emt 0:00:41]} 79. Kd3 {[%emt 0:00:19]} Re8 {[%emt 0:00:36]} 80. Kd4 {[%emt 0:00:25]} Rd8+ {[%emt 0:00:04]} 81. Ke3 $1 {[%emt 0:00:06]} Re8 {[%emt 0:00:06]} 82. Kf4 $1 {[%emt 0:00:09]} Rg8 {[%emt 0:00:03] [#] aiming for ...Rg4+.} 83. Bb2 {[%emt 0:10:44]} (83. Rg3 $14) 83... Rg4+ $11 {[%emt 0:00:19] The position is equal.} 84. Ke5 {[%emt 0:00:02]} Rxh4 {[%emt 0:00:31]} 85. Rc3 {[%emt 0:00:07]} Rb4 {[%emt 0:01:05]} 86. Rxc6 {[%emt 0:00:31] KRB-KR} Rb5+ {[%emt 0:00:06]} 87. Kf4 {[%emt 0:00:07] Threatens to win with Rc7+.} Rxb2 {[%emt 0:00:04]} 88. Kg5 {[%emt 0:00:07]} Rg2+ {[%emt 0:00:06]} 89. Kxh5 {[%emt 0:00:06]} Rg1 {[%emt 0:00:08]} 90. Rb6 {[%emt 0:00:05]} Rg2 {[%emt 0:00:05]} 91. Rc6 {[%emt 0:00:06]} Rg1 {[%emt 0:00:04]} 92. Rb6 {[%emt 0:00:03]} Rg2 {[%emt 0:00:05] Weighted Error Value: White=0.05 (flawless) /Black=0.08 (flawless)} 1/2-1/2

[Event "1st Serbian League 2022"]
[Site "Vrnjacka Banja"]
[Date "2022.09.27"]
[Round "8.20"]
[White "Damljanovic, Branko"]
[Black "Ivanisevic, Ivan"]
[Result "1/2-1/2"]
[ECO "A35"]
[WhiteElo "2436"]
[BlackElo "2547"]
[Annotator "TA"]
[PlyCount "25"]
[EventDate "2022.09.20"]
[EventType "team-tourn"]
[EventCountry "SRB"]
[SourceTitle "playchess.com"]
[Source "ChessBase"]
[SourceQuality "1"]
[TimeControl "40/5400+30:1800+30"]

{[%evp 11,25,37,44,5,6,6,15,-17,-10,-32,-29,-54,-49,-69,7,16]} 1. Nf3 {[%emt 0:00:04]} c5 {[%emt 0:00:09]} 2. c4 {[%emt 0:00:12]} Nc6 {[%emt 0:00:06]} 3. Nc3 {[%emt 0:00:05]} g6 {[%emt 0:00:34]} 4. e3 {[%emt 0:00:09]} Bg7 {[%emt 0:00:05]} 5. d4 {[%emt 0:00:04]} d6 {[%emt 0:00:06]} 6. d5 {[%emt 0:00:07]} Ne5 {[%emt 0:00:08]} 7. Nd2 {[%emt 0:00:23] A35: Symmetrical English: 2 Nc3 Nc6 3 Nf3.} f5 {[%emt 0:00:44]} 8. Be2 {[%emt 0:00:07]} Nf6 {[%emt 0:00:09]} 9. h3 {[%emt 0:01:03]} O-O {[%emt 0:00:58]} 10. f4 {[%emt 0:05:42]} Nf7 {[%emt 0:00:15]} 11. g4 {[%emt 0:00:10]} e5 $1 {[%emt 0:07:36] White must now prevent ...exf4.} 12. g5 {[%emt 0:00:50] [#]} Nd7 $146 {[%emt 0:06:58]} (12... Ne4 $1 $15 13. Ndxe4 (13. Ncxe4 fxe4 14. Nxe4 Qe7 $17) 13... fxe4) ({Predecessor:} 12... Ne8 13. Qc2 Nc7 14. h4 Bd7 15. Nf1 a6 16. Bd2 b5 17. O-O-O bxc4 18. Bxc4 Nb5 {0-1 (40) Meier,G (2659)-Agopov,M (2419) Germany 2010}) 13. h4 {[%emt 0:00:32] Weighted Error Value: White=0.23 (precise) /Black=0.11 (very precise)} 1/2-1/2

[Event "1st Serbian League 2022"]
[Site "Vrnjacka Banja"]
[Date "2022.09.27"]
[Round "8.22"]
[White "Nikolovski, Nikola"]
[Black "Miljkovic, Miroslav D"]
[Result "1-0"]
[ECO "B02"]
[WhiteElo "2359"]
[BlackElo "2456"]
[Annotator "TA"]
[PlyCount "93"]
[EventDate "2022.09.20"]
[EventType "team-tourn"]
[EventCountry "SRB"]
[SourceTitle "playchess.com"]
[Source "ChessBase"]
[SourceQuality "1"]
[TimeControl "40/5400+30:1800+30"]

{[%evp 20,93,-13,-23,30,-26,0,-17,-12,-2,-13,-6,-18,-17,-23,-28,7,9,26,23,24,2,0,8,3,-47,0,0,0,0,0,0,32,47,27,12,82,79,72,15,116,65,68,65,65,56,34,34,168,158,150,145,207,208,494,472,454,438,406,355,354,316,401,0,320,339,828,822,868,525,778,774,1850,1817,29988,29989]} 1. e4 {[%emt 0:00:03]} c5 {[%emt 0:00:06]} 2. Nc3 {[%emt 0:00:29]} e6 {[%emt 0:00:45]} 3. f4 {[%emt 0:02:17]} d5 {[%emt 0:00:48]} 4. d3 {[%emt 0:03:51]} Nc6 {[%emt 0:09:29]} 5. Nf3 {[%emt 0:00:36]} Be7 {[%emt 0:06:01]} 6. g3 {[%emt 0:04:19]} Nf6 {[%emt 0:02:23]} 7. e5 {[%emt 0:00:16]} Nd7 {[%emt 0:00:44]} 8. Bg2 {[%emt 0:00:49]} O-O {[%emt 0:03:29]} 9. O-O {[%emt 0:00:22]} Rb8 {[%emt 0:05:19]} 10. a4 {[%emt 0:03:50]} a6 {[%emt 0:00:58][%cal Ba7a6,Ba6b5,Bb5b4,Bb4b3][%mdl 32]} 11. Qe2 {[%emt 0:09:21]} Qc7 {[%emt 0:02:37] [#] B02: Alekhine's Defence: Chase Variation and lines with early Nc3.} ({Black should try} 11... b5) 12. Bd2 $146 {[%emt 0:03:38]} ({Better is} 12. f5) ({Predecessor:} 12. Nd1 Nd4 13. Nxd4 cxd4 14. Kh1 b5 15. axb5 Rxb5 16. Ra4 Nb6 17. Ra1 Rc5 18. c3 a5 19. Bd2 {1-0 (33) Gutmann,A (2048)-Kresz,A (1988) Hungary 2018}) 12... Nd4 {[%emt 0:03:19]} 13. Qd1 {[%emt 0:01:51]} Nxf3+ {[%emt 0:00:43] The position is equal.} 14. Qxf3 {[%emt 0:03:20]} b5 {[%emt 0:00:45]} 15. axb5 {[%emt 0:01:25]} axb5 {[%emt 0:00:04]} 16. Rae1 {[%emt 0:00:52]} b4 {[%emt 0:04:51]} 17. Nd1 {[%emt 0:03:48]} b3 {[%emt 0:15:11]} 18. c3 {[%emt 0:02:35][%cal Bc2c3,Bc3c4][%mdl 32]} d4 {[%emt 0:01:19]} 19. c4 {[%emt 0:05:17]} Bb7 {[%emt 0:05:12]} 20. Qh5 {[%emt 0:00:33]} Bxg2 {[%emt 0:01:44]} 21. Kxg2 {[%emt 0:00:08]} Qc6+ {[%emt 0:00:29]} 22. Rf3 {[%emt 0:10:26]} (22. Kg1 $11) 22... Ra8 {[%emt 0:01:34]} (22... f6 $15 23. exf6 Rxf6) 23. Nf2 $11 {[%emt 0:01:53]} Ra2 {[%emt 0:00:54]} 24. Bc1 {[%emt 0:00:16]} Ra1 {[%emt 0:06:23]} 25. g4 {[%emt 0:06:39][%cal Bg3g4,Bg4g5][%mdl 32]} Rb1 {[%emt 0:05:26]} 26. g5 {[%emt 0:12:45]} Ra8 {[%emt 0:01:51]} 27. Ne4 {[%emt 0:00:10]} Raa1 {[%emt 0:01:26]} (27... Ra2 $11) 28. Rff1 $16 {[%emt 0:02:22]} Bd8 {[%emt 0:08:04]} 29. Kh3 $40 {[%emt 0:06:40][%mdl 128] White is up to no good.} (29. h4 $16) 29... g6 {[%emt 0:04:19]} (29... Nf8 $1 $11 {remains equal.}) 30. Qh6 {[%emt 0:02:42]} (30. Qf3 $16 {Strongly threatening Nf6+.} Qa8 31. Bd2) 30... Be7 $14 {[%emt 0:00:08]} (30... Ba5 31. Nf6+ Nxf6 32. exf6) 31. Kg3 {[%emt 0:04:51]} Ra6 {[%emt 0:03:11]} ({Of course not} 31... Bf8 32. Qh3 $11) 32. Rh1 {[%emt 0:04:50]} ({Much worse is} 32. Nf6+ Nxf6 33. gxf6 Bf8 $15) 32... Qa8 {[%emt 0:02:37]} ({Much weaker is} 32... Bf8 33. Qh3 $11) 33. Qh3 {[%emt 0:00:29]} Nb6 {[%emt 0:01:48]} (33... Qf8 $1 $14) 34. Qg2 $18 {[%emt 0:00:35]} Nd7 {[%emt 0:02:30]} 35. h4 {[%emt 0:00:14]} Kf8 {[%emt 0:00:46]} (35... h5 $16) 36. h5 {[%emt 0:00:17]} Ke8 $2 {[%emt 0:00:08]} (36... Kg8 37. Qh3 Nf8 38. hxg6 fxg6) 37. hxg6 {[%emt 0:02:31]} hxg6 {[%emt 0:00:01]} 38. Rh8+ {[%emt 0:00:05][%cal Bh1h8,Bh8g8,Bg8g7][%mdl 32]} Nf8 {[%emt 0:00:05]} 39. Qh1 {[%emt 0:00:59]} Kd7 {[%emt 0:01:32]} 40. Qh6 {[%emt 0:01:24] Black must now prevent Nf6+.} Raa1 {[%emt 0:00:23] [#]} 41. Qh1 $2 {[%emt 0:05:27] Dancing on a razor blade.} ({White must play} 41. Qg7 $1 $18 {[%cal Og7f7]} Qe8 (41... Kc6 42. Qxf7) 42. Rhh1) 41... Ra7 $2 {[%emt 0:07:19][%mdl 8192]} (41... Ra6 $1 $11 {and Black has nothing to worry.}) 42. Rg8 {[%emt 0:01:14]} Raa1 $2 {[%emt 0:04:34]} (42... Kc7 43. Nd2 Qxh1 44. Rxh1 Rba1 45. Nxb3 R1a4) 43. Rg7 {[%emt 0:03:56]} Ke8 {[%emt 0:00:56]} 44. Kg4 {[%emt 0:07:09]} Ra6 {[%emt 0:13:20]} 45. Qh8 {[%emt 0:03:27] [#] And now Qg8 would win.} Qb7 {[%emt 0:02:04]} 46. Qg8 {[%emt 0:01:24]} Bd8 {[%emt 0:00:16]} 47. Rh1 {[%emt 0:00:56] Weighted Error Value: White=0.39/Black=0.65} 1-0

[Event "1st Serbian League 2022"]
[Site "Vrnjacka Banja"]
[Date "2022.09.27"]
[Round "8.23"]
[White "Kosic, Dragan"]
[Black "Zlatanovic, Boroljub"]
[Result "1/2-1/2"]
[ECO "E94"]
[WhiteElo "2399"]
[BlackElo "2313"]
[Annotator "TA"]
[PlyCount "53"]
[EventDate "2022.09.20"]
[EventType "team-tourn"]
[EventCountry "SRB"]
[SourceTitle "playchess.com"]
[Source "ChessBase"]
[SourceQuality "1"]
[TimeControl "40/5400+30:1800+30"]

{[%evp 24,53,5,7,3,-17,0,0,0,0,0,0,0,0,0,0,0,-19,0,0,0,0,0,0,0,0,0,0,0,0,0,0]} 1. d4 {[%emt 0:00:31]} Nf6 {[%emt 0:00:07]} 2. Nf3 {[%emt 0:00:30]} g6 {[%emt 0:00:08]} 3. c4 {[%emt 0:00:31]} Bg7 {[%emt 0:00:19]} 4. Nc3 {[%emt 0:00:08]} d6 {[%emt 0:00:05]} 5. e4 {[%emt 0:00:09]} O-O {[%emt 0:00:11]} 6. Be2 {[%emt 0:00:04]} e5 {[%emt 0:00:17]} 7. Be3 {[%emt 0:00:26]} exd4 {[%emt 0:04:13]} 8. Nxd4 {[%emt 0:00:52]} Re8 {[%emt 0:00:13]} 9. f3 {[%emt 0:00:33]} c6 {[%emt 0:01:12][%cal Bc7c6,Bc6d5][%mdl 32]} 10. O-O {[%emt 0:03:39]} d5 {[%emt 0:05:07]} 11. cxd5 {[%emt 0:00:16]} Nxd5 {[%emt 0:06:40]} 12. Nxd5 {[%emt 0:02:33]} cxd5 {[%emt 0:00:07]} 13. Qb3 {[%emt 0:02:05] The position is equal.} Nc6 {[%emt 0:06:37] E94: King's Indian: Classical: 6 Be2 e5 7 0-0: Various Black 7th moves.} 14. Rfd1 {[%emt 0:10:41]} (14. Rad1 $5 {[%cal Re2b5]}) 14... Nxd4 {[%emt 0:06:44]} 15. Bxd4 {[%emt 0:00:15]} Bxd4+ {[%emt 0:00:26]} 16. Rxd4 {[%emt 0:00:08]} Qf6 $1 {[%emt 0:00:11]} 17. Qxd5 {[%emt 0:11:17]} Be6 {[%emt 0:02:13]} 18. e5 {[%emt 0:00:28]} Qg5 {[%emt 0:10:11]} 19. Qe4 {[%emt 0:02:21] Against Qe3+} Bf5 {[%emt 0:01:34] [#]} 20. h4 $146 {[%emt 0:06:02]} ({Predecessor:} 20. Qf4 Qxf4 21. Rxf4 Rxe5 22. Bf1 Rd8 23. Rb4 b6 24. a4 Kg7 25. Rb5 Kf6 26. Rxe5 Kxe5 {0-1 (44) Gross,S (2350)-Rasik,V (2420) Czech Republic 1995}) 20... Qg3 {[%emt 0:02:18]} 21. Qe3 {[%emt 0:03:07]} Rxe5 {[%emt 0:04:57]} 22. Qf2 {[%emt 0:00:29]} Qxf2+ {[%emt 0:00:40]} 23. Kxf2 {[%emt 0:00:15]} Rc8 {[%emt 0:01:30] ...Rc2 is the strong threat.} 24. Rad1 {[%emt 0:00:10]} Rc2 {[%emt 0:02:47][%csl LRb2,LRe2]} 25. R1d2 {[%emt 0:00:23]} Rec5 {[%emt 0:03:30]} 26. a3 {[%emt 0:04:17]} h6 {[%emt 0:06:10]} 27. g4 {[%emt 0:07:53] A balanced but interesting game.  Weighted Error Value: White=0.04 (flawless) /Black=0.03 (flawless)} 1/2-1/2

[Event "1st Serbian League 2022"]
[Site "Vrnjacka Banja"]
[Date "2022.09.27"]
[Round "8.24"]
[White "Radlovacki, Jovan"]
[Black "Laketic, Gojko"]
[Result "1/2-1/2"]
[ECO "B05"]
[WhiteElo "2287"]
[BlackElo "2255"]
[Annotator "TA"]
[PlyCount "43"]
[EventDate "2022.09.20"]
[EventType "team-tourn"]
[EventCountry "SRB"]
[SourceTitle "playchess.com"]
[Source "ChessBase"]
[SourceQuality "1"]
[TimeControl "40/5400+30:1800+30"]

{[%evp 17,20,33,36,44,43]} 1. e4 {[%emt 0:00:05][%cal Be2e4,Be4e5][%mdl 32]} Nf6 {[%emt 0:03:12]} 2. e5 {[%emt 0:00:13]} Nd5 {[%emt 0:00:22]} 3. d4 {[%emt 0:00:05]} d6 {[%emt 0:00:12]} 4. Nf3 {[%emt 0:00:15]} Bg4 {[%emt 0:02:32]} 5. Be2 {[%emt 0:15:28]} e6 {[%emt 0:01:50]} 6. c4 {[%emt 0:01:05]} Nb6 {[%emt 0:00:36]} 7. exd6 {[%emt 0:00:22]} cxd6 {[%emt 0:00:28]} 8. O-O {[%emt 0:00:15]} Be7 {[%emt 0:00:13]} 9. h3 {[%emt 0:14:49]} Bh5 {[%emt 0:00:58]} 10. Be3 {[%emt 0:01:35] B05: Alekhine's Defence: 4 Nf3 Bg4.} O-O {[%emt 0:03:10] [#]} {Predecessor:} 11. Nc3 $146 d5 12. c5 Bxf3 13. Bxf3 Nc4 14. Bc1 Nc6 15. b3 N4a5 16. Bb2 Bf6 17. Na4 b5 18. cxb6 axb6 19. Be2 Rb8 20. Bb5 Qd6 21. Qd2 Rfc8 22. Rfd1 {0-1 (35) Petrisor,A (2377)-Berkes,F (2645) Calimanesti Caciulata 2016} 1/2-1/2

[Event "1st Serbian League 2022"]
[Site "Vrnjacka Banja"]
[Date "2022.09.27"]
[Round "8.25"]
[White "Yilmazyerli, Mert"]
[Black "Predojevic, Borki"]
[Result "1/2-1/2"]
[WhiteElo "2533"]
[BlackElo "2584"]
[Annotator "TA"]
[PlyCount "31"]
[EventDate "2022.09.20"]
[EventType "team-tourn"]
[EventCountry "SRB"]
[SourceTitle "playchess.com"]
[Source "ChessBase"]
[SourceQuality "1"]
[TimeControl "40/5400+30:1800+30"]

{[%evp 14,15,29,18]} 1. Nf3 {[%emt 0:01:28]} d5 {[%emt 0:00:09]} 2. g3 {[%emt 0:00:04]} g6 {[%emt 0:00:09]} 3. Bg2 {[%emt 0:00:05]} Bg7 {[%emt 0:00:05]} 4. d4 {[%emt 0:00:03]} Nf6 {[%emt 0:00:09]} 5. c4 {[%emt 0:00:19]} dxc4 {[%emt 0:00:09]} 6. Na3 {[%emt 0:00:33]} O-O {[%emt 0:00:07]} 7. O-O $1 {[%emt 0:00:21] The main line 7.0-0 scores better than 7.Nxc4.} c5 {[%emt 0:00:27]} 8. Nxc4 {[%emt 0:02:54] [#]} {Predecessor:} Be6 $146 {D77: Fianchetto Grünfeld: 6 0-0: Replies other than 6...c6.} 9. Nce5 Nbd7 10. Ng5 cxd4 11. Nxe6 fxe6 12. Nf3 e5 13. Qb3+ Kh8 14. Ng5 Qb6 15. Qxb6 axb6 16. Ne6 {1-0 (74) Nakamura,H (2736)-Hovhannisyan,R (2643) Warsaw 2021} 1/2-1/2